bitfinex/quotes_ETHUSD_20250611
["timestamp","ask_amount","ask_price","bid_price","bid_amount"]
[1749645852725,20.38976264,2815.2,2814.1,0.04]
[1749645852924,1.791,2815.1,2814.1,0.04]
[1749645853367,11.5341,2815.2,2814.1,0.04]
[1749645853567,1.791,2815.0,2814.1,0.04]
[1749645853871,10.38976264,2815.2,2814.1,0.04]
[1749645854073,1.5341,2815.2,2814.2,0.1467]
[1749645854568,1.792,2815.3,2814.2,0.1467]
[1749645854741,1.435,2815.7,2814.2,0.1467]
[1749645854943,1.792,2815.6,2814.2,0.1467]
[1749645855608,2.09040041,2815.6,2814.2,0.1467]
[1749645855812,0.29840041,2815.6,2814.2,0.1467]
[1749645855981,0.29840041,2815.6,2814.1,0.04]
[1749645855982,0.29840041,2815.6,2814.6,0.1467]
[1749645856169,0.29840041,2815.6,2814.9,0.1467]
[1749645856917,3.55063201,2816.4,2814.9,0.1467]
[1749645857124,1.4451,2816.1,2814.9,0.1467]
[1749645857592,0.29840041,2816.0,2815.8,0.1768]
[1749645857796,3.84961378,2816.0,2815.8,0.1768]
[1749645858116,0.29840041,2816.0,2815.6,0.1768]
[1749645858294,3.84959064,2816.0,2815.6,0.1768]
[1749645858495,1.54714906,2815.9,2815.6,0.1768]
[1749645859217,11.4451,2816.1,2815.0,0.00688561]
[1749645859409,13.2371,2816.1,2815.0,0.00688561]
[1749645859711,1.792,2816.0,2815.8,0.1768]
[1749645860083,11.4451,2816.1,2815.0,0.00688561]
[1749645860287,1.792,2816.0,2815.8,0.1768]
[1749645861015,11.4451,2816.1,2815.8,0.1768]
[1749645861845,1.40691643,2816.3,2816.0,0.1768]
[1749645861846,0.52,2816.3,2816.0,0.1768]
[1749645862038,1.5375,2816.6,2816.0,0.1768]
[1749645862171,4.03013654,2816.6,2816.0,0.1768]
[1749645862371,8.85566264,2816.2,2816.0,0.1768]
[1749645862926,8.85566264,2816.2,2814.9,0.2829]
[1749645863128,1.792,2816.1,2814.9,0.2829]
[1749645863292,8.85566264,2816.2,2814.9,0.2829]
[1749645863690,3.55110895,2816.1,2814.9,0.2829]
[1749645864205,9.9204289,2816.2,2814.9,0.2829]
[1749645864414,13.47135112,2816.2,2814.9,0.2829]
[1749645864612,9.9204289,2816.2,2814.9,0.2829]
[1749645864934,11.5375,2816.6,2814.9,0.2829]
[1749645865103,1.792,2816.4,2814.9,0.2829]
[1749645865914,4.5224,2816.5,2814.9,0.2829]
[1749645866314,4.5224,2816.5,2815.0,0.00835595]
[1749645866486,9.191,2816.7,2815.1,0.2829]
[1749645866698,9.48940041,2816.7,2815.1,0.2829]
[1749645866889,9.48940041,2816.7,2815.2,4.918]
[1749645867088,0.29840041,2816.7,2815.3,0.2829]
[1749645867296,0.29840041,2816.7,2815.5,0.2829]
[1749645868086,8.85566264,2816.8,2815.5,0.2829]
[1749645869434,10.0,2817.0,2815.5,0.2829]
[1749645870019,4.5224,2817.1,2815.5,0.2829]
[1749645870489,10.0,2817.2,2815.6,4.915]
[1749645870895,10.0,2817.2,2815.7,0.2829]
[1749645870896,3.54967702,2817.2,2815.7,0.2829]
[1749645871102,8.85566264,2817.0,2815.8,0.51979]
[1749645871430,15.14973543,2816.9,2815.7,0.2829]
[1749645871635,11.5997,2816.9,2815.7,0.2829]
[1749645871789,0.04,2816.9,2815.7,0.2829]
[1749645871995,0.04,2816.9,2816.8,0.4597]
[1749645872591,0.04,2816.9,2816.3,0.2829]
[1749645873208,0.04,2816.9,2815.5,0.49656266]
[1749645873209,0.04,2816.9,2815.9,0.2829]
[1749645875491,1.5106,2816.8,2815.4,0.2829]
[1749645875692,10.36626264,2816.8,2815.4,0.2829]
[1749645875893,1.39563058,2816.7,2815.4,0.80239]
[1749645876505,11.39563058,2816.7,2815.4,0.80239]
[1749645876835,8.85566264,2815.8,2815.4,0.0040606]
[1749645877331,13.5516049,2815.7,2815.4,0.0040606]
[1749645877633,10.0,2815.7,2815.4,0.0040606]
[1749645878191,1.781,2815.6,2815.4,0.0040606]
[1749645878398,4.21896626,2815.6,2815.4,0.0040606]
[1749645878708,3.55220217,2815.2,2814.1,0.3229]
[1749645879029,8.85566264,2815.0,2814.2,0.00406246]
[1749645879423,8.85566264,2815.0,2814.1,0.3229]
[1749645879974,1.781,2815.3,2814.1,0.3229]
[1749645880270,1.781,2815.2,2814.1,0.3229]
[1749645880422,1.88513404,2815.3,2814.1,0.3229]
[1749645880619,10.0,2815.4,2814.1,0.3229]
[1749645880620,1.781,2815.2,2814.1,0.3229]
[1749645881119,10.0,2815.4,2814.1,0.3229]
[1749645881441,1.781,2815.1,2814.1,0.3229]
[1749645881769,0.52,2815.4,2814.1,0.3229]
[1749645881972,1.781,2815.2,2814.1,0.3229]
[1749645882541,1.781,2815.2,2815.1,0.1776]
[1749645882735,3.89666626,2815.2,2814.1,0.3229]
[1749645882918,10.0,2815.1,2814.8,0.1776]
[1749645883122,18.85566264,2814.9,2814.8,0.1776]
[1749645883363,18.85566264,2814.9,2813.4,0.10236154]
[1749645883364,1.5023,2814.2,2813.4,0.10236154]
[1749645883532,1.5023,2814.2,2813.1,0.04]
[1749645883533,1.5023,2814.6,2813.9,0.1776]
[1749645883739,1.5023,2815.1,2814.0,0.4605]
[1749645884624,1.5023,2815.1,2815.0,0.1776]
[1749645885974,1.5023,2815.1,2815.0,0.18028088]
[1749645886321,13.91023431,2815.1,2815.0,0.00268088]
[1749645886568,21.74898607,2815.1,2813.2,0.4605]
[1749645886795,5.0050966,2814.3,2814.1,0.1776]
[1749645887068,8.85566264,2813.9,2813.6,0.1776]
[1749645887355,12.40948696,2813.9,2813.6,0.1776]
[1749645887515,8.85566264,2813.9,2813.6,0.1776]
[1749645888121,8.76681798,2813.9,2813.6,0.1776]
[1749645888666,1.5327,2813.8,2813.6,0.1776]
[1749645888837,1.5327,2813.8,2813.4,0.1776]
[1749645889248,3.11388516,2813.8,2813.4,0.1776]
[1749645889764,1.5327,2813.8,2813.4,0.1776]
[1749645890118,1.5327,2813.8,2813.1,0.04]
[1749645890447,1.5327,2813.8,2813.6,0.1776]
[1749645891659,1.5327,2813.8,2813.7,0.00533054]
[1749645892645,15.08661285,2813.8,2813.7,0.00533054]
[1749645892845,14.31010308,2813.8,2813.7,0.00533054]
[1749645893877,17.86401593,2813.8,2813.7,0.00533054]
[1749645894038,14.31010308,2813.8,2813.7,0.00533054]
[1749645894490,14.31010308,2813.8,2813.4,0.1776]
[1749645894491,10.0,2813.7,2813.4,0.1776]
[1749645894890,0.5327,2813.8,2813.4,0.1776]
[1749645895061,10.5327,2813.8,2813.4,0.1776]
[1749645895262,7.1447368,2813.6,2813.4,0.1776]
[1749645896110,7.1447368,2813.6,2813.1,0.04]
[1749645896111,14.901,2813.5,2813.1,0.04]
[1749645896400,7.1447368,2813.6,2813.1,0.04]
[1749645896612,0.1776,2813.9,2813.1,1.4702]
[1749645896948,0.1776,2813.9,2813.2,0.00293711]
[1749645897185,9.203,2814.0,2813.2,0.00293711]
[1749645897547,1.782,2814.4,2813.2,0.00293711]
[1749645897991,7.1447368,2813.8,2813.2,0.00293711]
[1749645898215,7.1447368,2813.4,2813.2,0.00293711]
[1749645898344,1.5077,2813.2,2812.3,0.66666667]
[1749645898547,7.1447368,2812.7,2812.3,0.66666667]
[1749645899364,8.87978063,2812.7,2812.3,0.66666667]
[1749645900164,8.87978063,2812.9,2812.3,0.66666667]
[1749645900733,1.5077,2813.2,2812.3,0.66666667]
[1749645900734,11.5077,2813.2,2812.3,0.66666667]
[1749645901005,10.64778063,2813.3,2812.4,1.4302]
[1749645901199,10.64778063,2813.3,2812.5,0.20968667]
[1749645901902,9.97527477,2813.8,2812.5,0.20968667]
[1749645901903,10.0,2813.6,2812.5,0.20968667]
[1749645902122,9.39978063,2814.2,2812.6,1.4302]
[1749645902644,3.3407,2814.5,2812.6,1.4302]
[1749645902818,8.87978063,2813.8,2812.6,1.4302]
[1749645902979,8.87978063,2813.8,2812.7,0.65623084]
[1749645903185,8.87978063,2813.8,2812.7,0.00254217]
[1749645903378,1.5612,2813.7,2812.7,0.00254217]
[1749645903925,8.87978063,2813.8,2812.7,0.00254217]
[1749645904240,8.87978063,2813.3,2812.7,0.00254217]
[1749645904547,10.47908063,2813.3,2812.7,0.00254217]
[1749645904831,8.87978063,2812.8,2812.7,0.00254217]
[1749645904988,8.87978063,2812.8,2812.1,0.04]
[1749645905186,8.87978063,2812.3,2812.1,0.04]
[1749645905788,18.87978063,2812.8,2812.1,0.04]
[1749645905938,3.3552944,2813.3,2812.1,0.04]
[1749645906107,1.768,2813.1,2812.7,0.1776]
[1749645906307,8.87978063,2812.8,2812.5,0.1776]
[1749645906643,0.55,2812.7,2812.5,0.1776]
[1749645906843,0.55,2812.5,2812.1,0.04]
[1749645906995,1.4607,2812.0,2811.1,0.70666667]
[1749645907197,0.55,2811.5,2811.1,0.70666667]
[1749645907791,1.4552,2811.4,2811.1,0.70666667]
[1749645907991,0.55,2811.3,2811.1,0.70666667]
[1749645908228,0.1776,2811.3,2811.1,0.70666667]
[1749645908596,1.1828,2811.4,2811.1,0.70666667]
[1749645908795,1.1828,2811.4,2811.1,0.88426667]
[1749645908997,8.87978063,2811.6,2811.1,0.70666667]
[1749645909314,8.87978063,2811.6,2811.3,0.1776]
[1749645909751,8.87978063,2811.6,2811.5,0.1776]
[1749645909928,8.87978063,2811.6,2811.4,0.1776]
[1749645910135,14.83755869,2811.6,2811.1,0.70666667]
[1749645910318,0.55,2811.4,2811.1,0.70666667]
[1749645910519,0.1776,2811.3,2811.1,0.70666667]
[1749645911025,12.4956,2811.2,2811.1,0.70666667]
[1749645911207,12.1036,2811.1,2810.4,0.1776]
[1749645911412,8.87978063,2810.7,2810.4,0.1776]
[1749645912275,0.55,2810.6,2810.4,0.1776]
[1749645912559,10.55,2810.6,2810.2,0.1776]
[1749645912759,0.1776,2810.8,2810.2,0.1776]
[1749645912962,11.768,2810.7,2810.5,0.1776]
[1749645913161,0.55,2810.6,2810.1,0.04]
[1749645913316,0.55,2810.6,2810.2,0.1776]
[1749645913516,11.768,2810.7,2810.1,0.04]
[1749645913716,0.55,2810.6,2810.5,0.1776]
[1749645913917,0.55,2810.6,2810.2,0.1776]
[1749645914342,11.768,2810.7,2810.1,0.04]
[1749645914545,1.769,2810.7,2810.5,0.1776]
[1749645914862,1.769,2810.7,2810.1,0.04]
[1749645914863,8.87978063,2810.7,2810.1,0.04]
[1749645915064,1.5536,2811.1,2810.3,0.1776]
[1749645915266,11.5536,2811.1,2810.3,0.1776]
[1749645915418,1.5536,2811.1,2810.3,0.1776]
[1749645915848,8.87978063,2810.9,2810.3,0.1776]
[1749645916170,8.87978063,2811.3,2810.1,0.04]
[1749645916317,8.87978063,2811.3,2810.2,1.5471]
[1749645917253,10.0,2811.6,2810.2,1.5471]
[1749645917452,0.55,2811.5,2810.2,1.5471]
[1749645918316,8.87978063,2811.3,2810.2,1.5471]
[1749645918520,9.76775869,2811.3,2810.2,1.5471]
[1749645919031,8.87978063,2811.3,2810.2,1.5471]
[1749645921562,10.0,2811.6,2810.2,1.5471]
[1749645921860,1.769,2811.4,2810.2,1.5471]
[1749645922224,10.0,2811.6,2810.2,1.5471]
[1749645923030,10.976,2811.7,2810.2,1.5471]
[1749645923358,7.15384906,2811.0,2810.2,1.5471]
[1749645924734,7.15384906,2810.6,2810.2,1.5471]
[1749645925180,4.10762928,2810.9,2810.4,0.1776]
[1749645925473,0.1776,2811.1,2810.1,0.04]
[1749645925474,10.0,2811.1,2810.5,0.1776]
[1749645925677,7.15384906,2810.8,2810.1,0.04]
[1749645925860,7.15384906,2810.4,2810.1,0.04]
[1749645926260,7.15384906,2810.4,2810.3,0.1776]
[1749645926560,7.15384906,2810.8,2810.3,0.1776]
[1749645926946,7.15384906,2810.8,2810.7,0.1776]
[1749645927268,0.1776,2811.1,2810.1,0.04]
[1749645927574,0.1776,2811.1,2810.7,0.181616]
[1749645928072,18.88925677,2811.2,2810.7,0.004016]
[1749645928366,8.88925677,2811.2,2810.9,0.1776]
[1749645928932,0.99227599,2811.1,2810.9,0.1776]
[1749645929545,18.88925677,2811.0,2810.9,0.1776]
[1749645930478,8.88925677,2811.0,2810.9,0.1776]
[1749645931139,9.18765718,2811.0,2810.9,0.1776]
[1749645931472,0.29840041,2811.0,2810.9,0.1776]
[1749645932487,0.29840041,2811.0,2810.8,1.5747]
[1749645934584,0.29840041,2811.0,2810.2,1.5895]
[1749645936277,10.0,2811.2,2810.2,1.5895]
[1749645936469,10.0,2811.2,2810.3,0.11512621]
[1749645936679,1.752,2811.4,2810.4,0.11110358]
[1749645936862,1.752,2811.4,2810.5,0.11110358]
[1749645937085,1.752,2811.4,2810.6,0.11110358]
[1749645937277,10.55,2811.6,2810.7,0.11110358]
[1749645937482,13.28931051,2811.6,2810.8,0.11110358]
[1749645937666,13.28931051,2811.6,2810.9,0.11110358]
[1749645937865,13.28931051,2811.6,2811.0,0.11110358]
[1749645938084,13.28931051,2811.6,2811.1,0.11110358]
[1749645938295,2.302,2811.6,2811.2,0.11110358]
[1749645938480,11.5987,2811.7,2811.3,0.11110358]
[1749645938672,8.88925677,2811.8,2811.4,0.11110358]
[1749645938874,8.88925677,2811.8,2811.5,0.11110358]
[1749645939075,1.752,2811.9,2811.6,0.11110358]
[1749645939399,1.752,2811.9,2811.7,0.11108269]
[1749645939569,1.752,2811.9,2811.8,0.11108269]
[1749645941095,2.8484,2811.9,2811.8,0.11108269]
[1749645941596,2.8484,2811.9,2811.8,0.11108789]
[1749645941760,3.3984,2811.9,2811.8,0.11108789]
[1749645942100,14.8904,2811.9,2811.8,0.11108789]
[1749645942304,14.8904,2811.9,2811.6,0.1776]
[1749645942515,14.3404,2811.9,2811.7,0.11109031]
[1749645942663,14.3404,2811.9,2811.8,0.11109031]
[1749645942664,13.244,2811.9,2811.8,0.11109031]
[1749645942858,3.244,2811.9,2811.8,0.11108915]
[1749645943185,3.794,2811.9,2811.0,1.4719]
[1749645943370,8.88925677,2811.7,2811.4,0.1776]
[1749645943572,10.55,2811.4,2810.2,1.5083]
[1749645943810,8.88925677,2810.7,2810.2,1.5083]
[1749645943992,8.88925677,2810.7,2810.1,0.04]
[1749645944205,10.35755677,2810.7,2810.1,0.04]
[1749645944519,0.55,2810.6,2810.3,0.1776]
[1749645945100,10.35755677,2811.1,2810.1,0.04]
[1749645945306,0.55,2810.9,2810.5,0.1776]
[1749645945669,0.90678727,2810.9,2810.5,0.1776]
[1749645946263,3.57321892,2810.9,2810.5,0.1776]
[1749645946665,10.0,2810.8,2810.5,0.1776]
[1749645947515,0.55,2810.7,2810.1,0.04]
[1749645947814,10.0,2810.8,2810.5,0.1776]
[1749645949425,10.0,2810.8,2810.6,0.00221249]
[1749645949780,0.35678727,2810.9,2810.6,0.00221249]
[1749645950088,0.29840041,2810.9,2810.7,0.1776]
[1749645950612,17.16041615,2810.8,2810.7,0.1776]
[1749645950774,7.16041615,2810.8,2810.7,0.1776]
[1749645951179,0.29840041,2810.9,2810.7,0.1776]
[1749645951373,0.29840041,2810.9,2810.7,0.17981241]
[1749645951808,0.1776,2811.6,2810.9,10.0]
[1749645952122,7.16041615,2813.5,2811.2,3.50521846]
[1749645952293,7.16041615,2813.5,2811.5,3.50521846]
[1749645952476,7.16041615,2814.3,2812.1,3.55598815]
[1749645952678,7.16041615,2813.5,2812.2,0.35559882]
[1749645952877,7.16041615,2813.1,2812.3,1.4148]
[1749645953318,7.16041615,2813.5,2812.3,1.4148]
[1749645953675,7.16041615,2813.1,2812.3,1.4148]
[1749645954182,7.16041615,2813.1,2812.3,6.2708]
[1749645954377,7.16041615,2813.1,2812.3,1.4148]
[1749645954608,10.0,2813.6,2812.3,6.2698]
[1749645954813,8.67631615,2813.7,2812.3,6.2698]
[1749645954975,10.0,2813.6,2812.3,1.4148]
[1749645955314,1.5159,2813.7,2812.3,6.2698]
[1749645955504,1.5159,2813.7,2812.3,6.89678]
[1749645955705,1.5159,2813.7,2812.4,0.11101821]
[1749645955942,1.5159,2813.7,2812.5,0.11101849]
[1749645956104,0.04,2813.9,2812.4,1.4149]
[1749645956306,0.04,2813.9,2812.5,1.4149]
[1749645956839,0.04,2813.9,2812.7,1.4149]
[1749645957041,0.04,2813.9,2812.6,1.03583592]
[1749645957248,0.04,2813.9,2812.7,1.4149]
[1749645957645,0.04,2813.9,2812.8,0.11098116]
[1749645957803,0.04,2813.9,2812.8,0.11098278]
[1749645958009,0.04,2813.9,2812.8,0.11098993]
[1749645958318,10.37285112,2813.2,2812.8,0.11101075]
[1749645958650,10.37285112,2813.2,2812.2,1.4149]
[1749645958651,1.4995,2813.2,2812.2,1.4149]
[1749645959153,1.4995,2813.5,2812.2,1.4149]
[1749645960058,1.4995,2813.5,2812.3,0.1110341]
[1749645960059,2.0495,2813.5,2812.3,0.1110341]
[1749645960358,10.0,2813.4,2812.2,1.4149]
[1749645960522,12.0495,2813.5,2811.9,6.2639]
[1749645960729,15.60384277,2813.5,2811.9,6.2639]
[1749645960925,10.0,2813.1,2812.0,0.11103987]
[1749645961258,10.0,2813.1,2811.9,1.4149]
[1749645961259,1.57,2812.8,2811.9,1.4149]
[1749645961759,1.57,2812.8,2812.0,0.11104623]
[1749645961924,1.57,2812.8,2811.7,1.4149]
[1749645961925,1.57,2812.8,2812.6,0.1776]
[1749645962440,9.42335112,2812.7,2811.3,1.4149]
[1749645962644,11.59335112,2812.7,2812.2,0.1776]
[1749645962843,10.0,2812.6,2812.2,0.1776]
[1749645963015,0.55,2812.5,2811.7,0.00401448]
[1749645963215,0.55,2812.3,2811.9,0.1776]
[1749645964062,0.7276,2812.6,2812.1,0.1776]
[1749645964269,1.731,2812.7,2812.1,0.1776]
[1749645964550,0.04,2812.9,2812.2,1.4149]
[1749645965423,0.04,2812.9,2811.7,1.00082754]
[1749645965424,0.04,2812.9,2812.8,1.5925]
[1749645965672,0.04,2812.9,2812.8,6.4365]
[1749645965966,0.04,2812.9,2812.8,7.084163]
[1749645966181,0.04,2812.9,2812.8,2.240163]
[1749645966325,0.04,2812.9,2812.8,7.083163]
[1749645966672,0.04,2812.9,2812.8,6.905563]
[1749645966964,0.04,2812.9,2812.8,16.905563]
[1749645967548,0.04,2812.9,2812.8,2.062563]
[1749645967860,0.04,2812.9,2812.8,1.418913]
[1749645968767,0.04,2812.9,2812.8,0.004013]
[1749645968768,3.2197,2812.9,2812.8,0.004013]
[1749645968926,3.2197,2812.9,2811.4,1.4149]
[1749645969264,0.55,2812.2,2810.5,1.4149]
[1749645969461,1.6009,2812.3,2810.1,0.04]
[1749645969462,0.55,2811.8,2810.1,0.04]
[1749645969694,1.731,2811.7,2810.2,4.84]
[1749645969977,5.15726576,2811.9,2810.2,4.84]
[1749645970276,1.731,2811.6,2810.2,4.84]
[1749645970479,0.55,2811.5,2810.1,0.04]
[1749645970627,10.2281,2811.4,2810.2,4.839]
[1749645970827,10.2281,2811.4,2810.1,0.04]
[1749645970828,1.5456,2811.3,2810.1,0.04]
[1749645971042,1.731,2811.2,2810.1,0.04]
[1749645971647,0.55,2811.1,2810.1,0.04]
[1749645972337,1.731,2811.0,2810.1,0.04]
[1749645972540,1.731,2810.9,2810.1,0.04]
[1749645973139,10.0,2811.2,2810.1,0.04]
[1749645973333,1.731,2811.1,2810.2,0.0022128]
[1749645973742,1.5456,2811.3,2810.2,0.0022128]
[1749645973947,10.0,2811.2,2810.2,0.0022128]
[1749645974161,1.731,2811.1,2810.2,0.0022128]
[1749645974558,1.5456,2811.3,2810.2,0.0022128]
[1749645974791,1.731,2811.0,2810.2,0.0022128]
[1749645974952,1.1731,2811.0,2810.2,0.0022128]
[1749645975152,1.731,2810.9,2810.2,0.0022128]
[1749645975463,1.5456,2811.3,2810.8,0.1776]
[1749645975661,1.731,2810.9,2810.8,0.1776]
[1749645975863,1.731,2810.9,2810.2,0.0022128]
[1749645976068,0.1776,2811.2,2810.7,0.1776]
[1749645976272,1.731,2811.1,2810.7,0.1776]
[1749645976476,1.731,2811.1,2810.1,0.04]
[1749645976672,1.731,2811.1,2811.0,0.1776]
[1749645976996,1.4851,2811.8,2811.0,0.1776]
[1749645977600,1.4851,2811.8,2811.1,0.11109049]
[1749645977800,1.5207,2812.7,2811.1,1.4149]
[1749645978012,1.5207,2812.7,2811.4,8.87335112]
[1749645978013,1.732,2812.5,2811.4,8.87335112]
[1749645978200,1.732,2812.5,2811.1,1.4149]
[1749645978563,1.732,2812.5,2811.2,1.25255405]
[1749645978796,1.732,2812.5,2811.3,0.11106411]
[1749645978998,1.732,2812.5,2811.4,8.87335112]
[1749645979201,1.5207,2812.7,2811.4,8.87335112]
[1749645979359,11.5207,2812.7,2811.4,8.87335112]
[1749645979559,11.5207,2812.7,2811.5,0.1110555]
[1749645979864,11.5207,2812.7,2811.6,0.89844066]
[1749645980614,11.5207,2812.7,2811.7,0.11106102]
[1749645980615,0.55,2812.3,2811.7,0.11106102]
[1749645980824,0.55,2812.6,2811.8,0.11107342]
[1749645981062,0.55,2812.4,2811.1,1.4149]
[1749645981260,0.55,2812.4,2811.2,0.11107501]
[1749645981261,1.5848,2812.3,2811.2,0.11107501]
[1749645981560,1.5848,2812.3,2811.3,0.11108529]
[1749645981561,0.55,2812.2,2811.3,0.11108529]
[1749645981714,0.55,2812.2,2811.3,0.00221193]
[1749645981915,10.55,2811.9,2811.3,0.00221193]
[1749645982149,0.21348,2812.1,2811.3,0.00221193]
[1749645982330,1.731,2812.0,2811.3,0.00221193]
[1749645982757,10.0,2811.8,2811.3,0.00221193]
[1749645982923,4.5224,2811.7,2811.3,0.00221193]
[1749645983128,1.731,2812.0,2811.3,0.00221193]
[1749645983346,1.731,2812.1,2811.4,0.11107504]
[1749645983532,1.731,2812.1,2811.3,1.39491193]
[1749645983742,1.731,2812.1,2811.3,0.00221193]
[1749645984061,11.5001,2812.0,2811.3,0.00221193]
[1749645984354,11.5001,2812.0,2811.4,0.1110883]
[1749645984355,0.55,2811.5,2811.4,0.1110883]
[1749645984516,1.732,2811.5,2810.2,8.87335112]
[1749645984725,1.4624,2811.7,2810.7,8.87335112]
[1749645984929,3.1944,2811.7,2810.8,1.50378986]
[1749645985156,3.1944,2811.7,2810.9,1.14880422]
[1749645985368,3.1944,2811.7,2810.9,1.0377141]
[1749645985551,3.1944,2811.7,2811.0,0.11109121]
[1749645985752,10.55,2811.6,2811.1,0.11108901]
[1749645985986,1.37444,2811.5,2810.3,10.26605112]
[1749645986126,1.732,2811.5,2811.2,0.00121859]
[1749645986329,1.732,2811.6,2811.2,0.00121859]
[1749645986939,1.4624,2811.7,2811.5,0.1776]
[1749645987143,1.732,2812.1,2811.5,0.1776]
[1749645987463,0.20707,2812.6,2811.6,4.93807264]
[1749645987464,1.5921,2812.6,2811.6,4.93807264]
[1749645987663,5.49,2812.5,2811.6,4.827]
[1749645987866,5.49,2812.5,2812.2,0.1776]
[1749645988072,7.0821,2812.6,2812.4,0.1776]
[1749645988599,0.55,2812.5,2812.3,0.1776]
[1749645988736,10.55,2812.5,2812.3,0.1776]
[1749645988943,10.55,2812.3,2811.0,4.826]
[1749645989144,0.55,2812.1,2811.7,0.1776]
[1749645989338,1.713,2812.1,2812.0,0.1776]
[1749645990148,1.5108,2812.2,2812.0,0.1776]
[1749645990636,0.55,2812.1,2812.0,0.1776]
[1749645991781,0.55,2812.1,2810.8,15.09005112]
[1749645991987,0.55,2812.1,2811.8,0.1776]
[1749645992185,1.713,2812.0,2811.8,0.1776]
[1749645992495,1.5108,2812.2,2811.3,8.87335112]
[1749645992698,1.5108,2812.2,2811.9,0.1776]
[1749645993098,1.5108,2812.2,2811.4,0.00221186]
[1749645993264,0.7276,2812.1,2811.6,0.1776]
[1749645993676,10.7276,2812.1,2811.6,0.1776]
[1749645993881,0.7276,2812.1,2811.6,0.1776]
[1749645994168,0.55,2811.9,2811.6,0.1776]
[1749645994375,10.55,2811.9,2811.6,0.1776]
[1749645994554,0.55,2811.9,2811.6,0.1776]
[1749645994983,10.55,2811.9,2811.6,0.1776]
[1749645995386,1.713,2811.9,2811.4,0.00221186]
[1749645995589,1.713,2811.9,2811.8,0.1776]
[1749645996094,2.263,2811.9,2811.8,0.1776]
[1749645996291,2.263,2811.9,2810.8,8.54269033]
[1749645996292,0.55,2811.8,2810.8,8.54269033]
[1749645996597,0.55,2811.6,2810.9,0.11109938]
[1749645996761,0.55,2811.4,2811.3,0.1776]
[1749645996962,7.13811291,2811.4,2811.3,0.11110416]
[1749645997187,14.5224,2811.4,2811.3,0.11110722]
[1749645997399,4.5224,2811.4,2811.3,0.1776]
[1749645997606,4.5224,2811.4,2811.3,0.17881855]
[1749645997763,15.0724,2811.4,2811.3,0.11232122]
[1749645997968,18.2544115,2811.4,2811.3,0.11232711]
[1749645998303,18.2544115,2811.4,2811.3,0.11233031]
[1749645998477,14.5224,2811.4,2811.3,0.11233044]
[1749645998677,14.5224,2811.4,2811.3,0.11232692]
[1749645999004,7.77,2811.8,2811.3,0.11231779]
[1749645999212,1.4606,2812.2,2811.4,7.14999033]
[1749645999598,1.4606,2812.2,2812.0,0.1776]
[1749645999903,1.713,2812.3,2812.1,0.28866996]
[1749646000110,1.713,2812.3,2812.2,0.11106996]
[1749646000301,1.713,2812.3,2812.1,0.1776]
[1749646000614,6.9435,2812.6,2812.1,0.1776]
[1749646000811,8.6565,2812.6,2812.1,0.1776]
[1749646000976,8.6565,2812.6,2812.5,0.1776]
[1749646000977,6.9435,2812.6,2812.5,0.1776]
[1749646001160,5.49,2812.6,2812.5,0.1776]
[1749646003973,1.713,2811.5,2810.7,0.11109848]
[1749646004280,5.362,2811.8,2810.8,0.11109772]
[1749646004281,1.713,2811.6,2810.8,0.11109772]
[1749646004481,1.713,2811.6,2810.8,1.03776871]
[1749646004689,11.4792,2811.9,2810.9,0.11109334]
[1749646005012,1.4792,2811.9,2810.8,1.03776871]
[1749646005206,1.713,2811.8,2810.8,1.03776871]
[1749646005369,1.713,2811.8,2810.9,0.11109542]
[1749646005570,1.713,2811.8,2811.0,0.11109488]
[1749646005778,1.713,2811.8,2810.8,1.03776871]
[1749646006183,4.5224,2811.7,2810.8,1.03776871]
[1749646006699,4.5224,2811.7,2810.9,0.11109102]
[1749646006894,4.5224,2811.7,2810.8,1.03776871]
[1749646007096,4.5224,2811.7,2810.9,0.11108883]
[1749646007310,4.5224,2811.7,2810.8,1.03776871]
[1749646007814,4.5224,2811.7,2810.9,0.11108784]
[1749646007980,4.5224,2811.7,2810.8,1.03776871]
[1749646008184,4.5224,2811.7,2810.9,0.1110859]
[1749646008386,4.43348582,2811.7,2811.0,0.1110872]
[1749646008583,1.713,2811.9,2811.1,0.11108201]
[1749646008784,1.713,2811.9,2810.9,0.00121872]
[1749646009004,1.713,2811.9,2811.0,0.11108722]
[1749646009285,10.0,2812.1,2810.9,0.00121872]
[1749646009488,1.713,2812.0,2811.1,8.87388935]
[1749646009714,1.713,2812.0,2811.2,1.14884204]
[1749646009889,1.713,2812.0,2811.2,1.03776658]
[1749646010213,12.263,2812.2,2811.2,1.03776658]
[1749646010414,12.263,2812.2,2811.3,1.47186559]
[1749646010599,12.263,2812.2,2811.4,0.11107368]
[1749646010807,1.713,2812.2,2811.5,0.11107365]
[1749646011137,1.713,2812.2,2811.4,0.00121851]
[1749646011138,1.713,2812.2,2811.6,0.11106914]
[1749646011326,1.713,2812.2,2811.4,0.00121851]
[1749646011327,1.713,2812.2,2811.7,0.11106637]
[1749646011530,1.713,2812.2,2811.4,0.00121851]
[1749646011832,1.713,2812.2,2811.5,0.62790841]
[1749646012129,1.713,2812.2,2811.6,0.111066]
[1749646012313,1.713,2812.2,2811.7,0.11106577]
[1749646012507,1.713,2812.2,2812.1,0.1776]
[1749646012803,2.263,2812.2,2812.1,0.28866652]
[1749646013113,2.263,2812.2,2811.6,0.1792645]
[1749646013114,0.55,2812.0,2811.6,0.1792645]
[1749646013286,0.55,2812.0,2811.7,0.11108784]
[1749646013489,0.55,2812.0,2811.6,0.1776]